bitfinex/quotes_BTCUSD_20220211
["timestamp","ask_amount","ask_price","bid_price","bid_amount"]
[1644612941289,0.01215211,42589.0,42581.0,0.331853]
[1644612941488,0.01,42589.0,42582.0,0.39057376]
[1644612941685,0.01,42589.0,42585.0,0.681853]
[1644612941686,0.005,42589.0,42585.0,0.681853]
[1644612941889,0.002,42597.0,42588.0,1.381853]
[1644612942088,0.002,42597.0,42590.0,0.331853]
[1644612942291,0.002,42597.0,42591.0,0.99430353]
[1644612942545,0.002,42597.0,42591.0,0.68402295]
[1644612942736,0.002,42597.0,42591.0,0.78402295]
[1644612942936,0.002,42597.0,42591.0,0.15]
[1644612943337,0.002,42597.0,42591.0,0.05]
[1644612943537,0.001,42597.0,42592.0,0.331853]
[1644612943740,0.001,42597.0,42593.0,0.331853]
[1644612943937,0.001,42597.0,42589.0,0.38524255]
[1644612944438,0.00145578,42597.0,42592.0,0.05872981]
[1644612944842,0.00145578,42597.0,42593.0,0.058733]
[1644612945037,0.059734,42597.0,42593.0,0.058733]
[1644612945238,0.001,42597.0,42594.0,0.331853]
[1644612945438,0.00141541,42597.0,42593.0,0.058733]
[1644612946039,0.00141541,42597.0,42584.0,0.234862]
[1644612946296,0.00141541,42597.0,42576.0,0.234921]
[1644612946297,0.05,42585.0,42576.0,0.234921]
[1644612946494,0.04928483,42596.0,42567.0,0.003]
[1644612946495,1.0424,42584.0,42567.0,0.003]
[1644612946696,0.00578483,42596.0,42571.0,0.058757]
[1644612946697,0.0435,42583.0,42571.0,0.058757]
[1644612946902,0.0435,42582.0,42571.0,0.058757]
[1644612947095,0.0935,42586.0,42579.0,0.22432491]
[1644612947297,0.0435,42586.0,42579.0,0.22432491]
[1644612947500,0.0435,42586.0,42578.0,0.3509372]
[1644612947896,0.00041545,42585.0,42578.0,0.3509372]
[1644612948097,0.04181545,42586.0,42578.0,0.3509372]
[1644612948298,0.09181545,42586.0,42578.0,0.3509372]
[1644612948500,0.09181545,42586.0,42579.0,1.05]
[1644612948501,0.22680645,42586.0,42579.0,1.05]
[1644612948702,0.45922819,42593.0,42580.0,0.381853]
[1644612948703,0.176245,42593.0,42580.0,0.381853]
[1644612948901,0.003,42598.0,42580.0,0.208737]
[1644612949298,0.3303485,42597.0,42580.0,0.208737]
[1644612949498,0.3303485,42597.0,42595.0,0.31647087]
[1644612949499,0.3890755,42597.0,42595.0,0.31647087]
[1644612949798,0.3890755,42597.0,42595.0,0.36647087]
[1644612949799,0.059727,42597.0,42595.0,0.36647087]
[1644612950054,0.059727,42597.0,42580.0,0.1]
[1644612950055,0.17742198,42597.0,42580.0,0.1]
[1644612950244,0.3,42596.0,42580.0,0.117472]
[1644612950444,0.001,42597.0,42580.0,0.117472]
[1644612950646,0.001,42597.0,42594.0,0.34944877]
[1644612950846,0.001,42597.0,42595.0,0.331853]
[1644612951048,0.001,42597.0,42595.0,0.49106328]
[1644612951049,0.152,42596.0,42595.0,0.49106328]
[1644612951246,0.152,42596.0,42595.0,0.331188]
[1644612952044,0.202,42596.0,42595.0,0.331188]
[1644612952245,0.202,42596.0,42595.0,0.1]
[1644612952444,0.202,42596.0,42595.0,0.099]
[1644612952445,0.152,42596.0,42595.0,0.099]
[1644612953048,0.002,42596.0,42595.0,0.099]
[1644612953244,0.002,42596.0,42595.0,0.430188]
[1644612953444,0.002,42596.0,42595.0,0.331188]
[1644612954086,0.052,42596.0,42595.0,0.331188]
[1644612954485,0.052,42596.0,42595.0,0.431188]
[1644612954784,0.052,42596.0,42595.0,0.1]
[1644612954984,0.052,42596.0,42595.0,0.431188]
[1644612956085,0.052,42596.0,42595.0,0.1]
[1644612956285,0.052,42596.0,42595.0,0.331188]
[1644612956888,0.052,42596.0,42595.0,0.431188]
[1644612957746,0.052,42596.0,42595.0,0.331188]
[1644612957944,0.052,42596.0,42594.0,0.29505692]
[1644612958244,0.052,42596.0,42573.0,0.226163]
[1644612958446,0.052,42596.0,42586.0,0.331188]
[1644612958447,0.058726,42593.0,42586.0,0.331188]
[1644612958844,0.20389345,42593.0,42586.0,0.331188]
[1644612959044,0.32399678,42589.0,42586.0,0.331188]
[1644612959245,0.32399678,42589.0,42587.0,0.331188]
[1644612959445,0.37399678,42589.0,42587.0,0.331188]
[1644612959647,0.15,42579.0,42569.0,0.3867]
[1644612959848,0.05,42587.0,42586.0,0.331188]
[1644612960252,0.32399678,42589.0,42586.0,0.331188]
[1644612960253,0.05,42589.0,42586.0,0.331188]
[1644612960448,0.00041761,42590.0,42587.0,0.331188]
[1644612960846,0.2,42594.0,42587.0,0.331188]
[1644612961049,0.058725,42590.0,42587.0,0.331188]
[1644612961306,0.108725,42590.0,42587.0,0.331188]
[1644612961902,0.108725,42590.0,42585.0,0.44999999]
[1644612962103,0.108725,42590.0,42585.0,0.54999999]
[1644612962303,0.16744761,42590.0,42585.0,0.54999999]
[1644612963403,0.16786562,42590.0,42585.0,0.54999999]
[1644612964403,0.117463,42589.0,42585.0,0.54999999]
[1644612964802,0.05873075,42587.0,42585.0,0.54999999]
[1644612965042,0.1174665,42586.0,42585.0,0.54999999]
[1644612965234,0.1674665,42586.0,42585.0,0.88118799]
[1644612965436,0.1674665,42586.0,42585.0,0.54999999]
[1644612965639,0.1674665,42586.0,42585.0,0.88118799]
[1644612965837,0.1674665,42586.0,42585.0,0.87742103]
[1644612966040,0.05,42586.0,42585.0,0.54999999]
[1644612966436,0.05,42586.0,42585.0,0.88118799]
[1644612966736,0.05,42586.0,42585.0,0.54999999]
[1644612968340,0.36195552,42586.0,42585.0,0.78118799]
[1644612968541,0.64170366,42586.0,42585.0,0.44999999]
[1644612968992,1.01918643,42586.0,42585.0,0.44999999]
[1644612969194,1.26808902,42586.0,42585.0,0.08964418]
[1644612969391,1.38322368,42586.0,42585.0,0.08964418]
[1644612969993,1.38322368,42586.0,42567.0,0.003]
[1644612969994,0.15,42568.0,42567.0,0.003]
[1644612970196,0.2,42568.0,42567.0,0.003]
[1644612970694,0.2,42568.0,42567.0,0.334188]
[1644612970899,0.50140244,42568.0,42567.0,0.334188]
[1644612971396,0.2,42568.0,42567.0,0.334188]
[1644612971998,0.05,42568.0,42567.0,0.334188]
[1644612972394,0.05,42568.0,42567.0,0.77227261]
[1644612972890,0.05,42568.0,42567.0,0.97604994]
[1644612973087,0.05,42582.0,42567.0,1.22604994]
[1644612973287,0.00043861,42587.0,42569.0,0.331188]
[1644612973688,0.5,42583.0,42575.0,0.34911713]
[1644612973887,0.05874099,42581.0,42576.0,0.331188]
[1644612974087,0.05874099,42581.0,42578.0,0.331188]
[1644612974288,0.058741,42589.0,42578.0,0.331188]
[1644612974289,0.15,42593.0,42578.0,0.431188]
[1644612974489,0.00043868,42587.0,42581.0,0.331188]
[1644612974889,0.00043868,42587.0,42581.0,0.431188]
[1644612975290,0.058728,42589.0,42583.0,0.331188]
[1644612975490,0.00041615,42587.0,42583.0,0.331188]
[1644612975689,0.00041615,42587.0,42583.0,0.431188]
[1644612976294,0.11788379,42587.0,42583.0,0.431188]
[1644612976495,0.11788379,42587.0,42583.0,0.331188]
[1644612976496,0.11746764,42587.0,42583.0,0.331188]
[1644612976697,0.00041616,42587.0,42583.0,0.431188]
[1644612977297,0.00041616,42587.0,42585.0,2.00011172]
[1644612977498,0.061106,42586.0,42585.0,2.00011172]
[1644612977698,0.05873,42588.0,42586.0,0.331188]
[1644612977898,0.05914615,42588.0,42586.0,0.431188]
[1644612979000,0.058727,42590.0,42586.0,0.331188]
[1644612979202,0.00041766,42589.0,42586.0,0.331188]
[1644612979700,0.00041766,42589.0,42586.0,0.431188]
[1644612980137,0.058727,42590.0,42586.0,0.431188]
[1644612980336,0.05912599,42590.0,42586.0,0.431188]
[1644612980736,0.05912599,42590.0,42586.0,0.331188]
[1644612981346,0.058727,42590.0,42586.0,0.431188]
[1644612981538,0.11785811,42590.0,42586.0,0.431188]
[1644612981736,0.16785811,42590.0,42586.0,0.431188]
[1644612982338,0.10912599,42590.0,42586.0,0.431188]
[1644612982538,0.108727,42590.0,42586.0,0.431188]
[1644612982841,0.058734,42588.0,42578.0,0.331188]
[1644612983039,0.108734,42588.0,42578.0,0.331188]
[1644612983238,0.05,42588.0,42578.0,0.331188]
[1644612983641,0.32846892,42595.0,42584.0,0.331188]
[1644612983911,0.00038771,42587.0,42584.0,0.331188]
[1644612984106,0.00038771,42587.0,42584.0,0.431188]
[1644612984711,0.00038771,42587.0,42584.0,0.74384186]
[1644612985007,0.058731,42588.0,42584.0,0.66865704]
[1644612985207,0.058731,42588.0,42585.0,1.84595897]
[1644612985208,0.05898125,42588.0,42585.0,1.84595897]
[1644612985710,0.10898125,42588.0,42585.0,1.84595897]
[1644612985908,0.10898125,42588.0,42585.0,1.94595897]
[1644612986106,0.108731,42588.0,42585.0,1.84595897]
[1644612986708,0.108731,42588.0,42581.0,0.35709327]
[1644612986709,0.061106,42586.0,42581.0,0.35709327]
[1644612986908,0.258731,42588.0,42582.0,0.331188]
[1644612986909,0.108731,42588.0,42582.0,0.331188]
[1644612987309,0.108731,42588.0,42575.0,0.117471]
[1644612987310,0.15,42583.0,42575.0,0.117471]
[1644612987548,0.05874,42581.0,42577.0,0.00042117]
[1644612987937,0.05874,42581.0,42578.0,0.331188]
[1644612988337,0.05874,42581.0,42579.0,0.331188]
[1644612988537,0.05874,42581.0,42577.0,0.058738]
[1644612988737,0.058736,42583.0,42578.0,0.331188]
[1644612988938,0.00042103,42587.0,42584.0,0.30086226]
[1644612989142,0.00042103,42587.0,42585.0,0.331188]
[1644612989638,0.00042103,42587.0,42577.0,2.56353753]
[1644612989639,0.061106,42586.0,42577.0,2.56353753]
[1644612989838,0.05874363,42584.0,42577.0,2.66397307]
[1644612990040,0.13080874,42596.0,42581.0,0.05]
[1644612990242,0.00043542,42588.0,42586.0,0.2]
[1644612990439,0.00227986,42596.0,42591.0,0.00087084]
[1644612990440,0.00027986,42595.0,42591.0,0.00087084]
[1644612990740,0.00227986,42596.0,42594.0,0.331188]
[1644612990938,0.002,42596.0,42594.0,0.331188]
[1644612991139,0.002,42596.0,42594.0,0.76326461]
[1644612991392,0.002,42596.0,42591.0,0.11828084]
[1644612991393,0.152,42596.0,42591.0,0.11828084]
[1644612991594,0.002,42596.0,42592.0,0.331188]
[1644612992193,0.002,42596.0,42592.0,0.448618]
[1644612992393,0.002,42596.0,42594.0,0.331188]
[1644612992795,0.002,42596.0,42594.0,0.431188]
[1644612993394,0.002,42596.0,42594.0,0.489906]
[1644612994195,0.002,42596.0,42591.0,0.00087084]
[1644612994398,0.152,42596.0,42591.0,0.00087084]
[1644612995052,0.15,42592.0,42591.0,0.00087084]
[1644612995245,0.311106,42592.0,42591.0,0.00087084]
[1644612995447,0.25,42592.0,42591.0,0.00087084]
[1644612995644,0.64953737,42592.0,42591.0,0.00087084]
[1644612996244,0.76702874,42592.0,42591.0,0.00087084]
[1644612996647,1.22163474,42592.0,42591.0,0.00087084]
[1644612996846,1.22163474,42592.0,42567.0,0.31923951]
[1644612996847,0.07794695,42575.0,42567.0,0.31923951]
[1644612997049,0.07794695,42575.0,42567.0,0.003]
[1644612997050,0.061106,42574.0,42567.0,0.003]
[1644612997246,0.07794695,42575.0,42567.0,0.003]
[1644612997247,0.12794695,42575.0,42567.0,0.0027463]
[1644612997446,0.17794695,42575.0,42567.0,0.0027463]
[1644612997646,0.05,42574.0,42567.0,0.0027463]
[1644612997844,0.058759,42573.0,42568.0,0.331188]
[1644612998046,0.058759,42573.0,42567.0,0.0027463]
[1644612998247,0.05,42577.0,42568.0,0.331188]
[1644612998447,0.05,42577.0,42570.0,0.058747]
[1644612998651,0.44382295,42580.0,42571.0,0.331188]
[1644612998892,0.44382295,42580.0,42572.0,0.29515032]
[1644612998893,0.058745,42579.0,42572.0,0.29515032]
[1644612999092,0.05,42580.0,42573.0,0.331188]
[1644612999291,0.15,42581.0,42567.0,0.0027463]
[1644612999492,0.0587472,42580.0,42573.0,0.00045759]
[1644612999696,0.15,42574.0,42573.0,0.00045759]
[1644612999893,0.56859582,42574.0,42573.0,0.00045759]
[1644613000094,1.07913536,42574.0,42573.0,0.00045759]
[1644613000293,1.43507088,42574.0,42573.0,0.00045759]
[1644613000491,1.43507088,42574.0,42567.0,0.0027463]
[1644613000699,0.15,42568.0,42567.0,0.0027463]
[1644613000894,0.45201252,42568.0,42567.0,0.0027463]
[1644613001092,0.55201252,42568.0,42567.0,0.0027463]
[1644613001491,0.61078952,42568.0,42567.0,0.0027463]
[1644613001691,0.55201252,42568.0,42567.0,0.3339343]
[1644613003139,0.55201252,42568.0,42545.0,0.1995507]
[1644613003140,0.061106,42558.0,42545.0,0.1995507]
[1644613003439,0.061106,42558.0,42542.0,0.331188]
[1644613003440,0.058786,42557.0,42542.0,0.331188]
[1644613003637,0.058786,42557.0,42542.0,0.505]
[1644613003638,0.05,42557.0,42542.0,0.505]
[1644613003843,0.188432,42559.0,42546.0,0.05]
[1644613003844,0.05,42555.0,42546.0,0.05]
[1644613004040,0.05,42559.0,42554.0,0.18938433]
[1644613004240,0.2934394,42565.0,42555.0,0.331188]
[1644613004441,0.05,42566.0,42556.0,0.331188]
[1644613004639,0.05876642,42568.0,42556.0,0.331188]
[1644613004844,0.5848,42573.0,42556.0,0.331188]
[1644613005039,0.26596844,42566.0,42556.0,0.431188]
[1644613005238,0.32519255,42565.0,42556.0,0.331188]
[1644613005639,0.32519255,42565.0,42559.0,0.00045773]
[1644613005840,0.37519255,42565.0,42559.0,0.00045773]
[1644613006040,0.061106,42564.0,42559.0,0.00045773]
[1644613006307,0.42519255,42565.0,42560.0,0.331188]
[1644613006308,0.28949686,42563.0,42560.0,0.331188]
[1644613006501,0.138432,42560.0,42559.0,0.00045773]
[1644613006706,0.138432,42560.0,42541.0,0.01]
[1644613006707,0.3017421,42560.0,42541.0,0.01]
[1644613006900,0.138432,42556.0,42550.0,0.00183132]
[1644613007100,0.3615672,42555.0,42550.0,0.00183132]
[1644613007301,0.39517688,42551.0,42550.0,0.00183132]
[1644613007504,0.39517688,42551.0,42550.0,0.33301932]
[1644613007700,0.39517688,42551.0,42550.0,0.00183132]
[1644613007701,0.44517688,42551.0,42550.0,0.00183132]
[1644613007902,0.05,42551.0,42550.0,0.331188]
[1644613008104,0.05,42551.0,42544.0,0.24760085]
[1644613008105,0.05,42551.0,42548.0,0.00045777]
[1644613008302,0.05,42554.0,42548.0,0.00045777]
[1644613008702,0.05,42555.0,42548.0,0.00045777]
[1644613008903,0.11757169,42552.0,42548.0,0.00045777]
[1644613009103,0.11757169,42552.0,42549.0,0.331188]
[1644613009304,0.16757169,42552.0,42549.0,0.33161933]
[1644613009504,0.05,42552.0,42549.0,0.33161933]
[1644613009903,0.3001162,42560.0,42549.0,0.33161933]
[1644613009904,0.058777,42558.0,42549.0,0.33161933]
[1644613010345,0.26769286,42557.0,42549.0,0.431188]
[1644613010543,0.26769286,42557.0,42549.0,0.57593752]
[1644613011144,0.05878047,42556.0,42549.0,0.57593752]
[1644613011343,0.05878047,42556.0,42549.0,0.67593752]
[1644613011542,0.11756147,42556.0,42549.0,0.67593752]
[1644613011744,0.05,42555.0,42549.0,0.431188]
[1644613011943,0.39965236,42553.0,42549.0,0.431188]
[1644613012345,0.05,42553.0,42549.0,0.431188]
[1644613012749,0.138432,42551.0,42541.0,0.01]
[1644613012944,0.33183783,42552.0,42549.0,0.00045715]
[1644613013144,0.256017,42550.0,42549.0,0.33164515]
[1644613013342,0.256017,42550.0,42549.0,0.00045715]
[1644613013543,0.60206634,42550.0,42549.0,0.00045715]
[1644613013800,0.95383478,42550.0,42549.0,0.00045715]
[1644613014002,0.058798,42548.0,42547.0,0.00045715]
[1644613014501,0.45908397,42548.0,42547.0,0.00045715]
[1644613014702,0.50908397,42548.0,42547.0,0.00045715]
[1644613014901,0.50908397,42548.0,42523.0,0.505]
[1644613014902,0.138432,42531.0,42528.0,0.00014372]
[1644613015103,0.138432,42531.0,42523.0,0.505]
[1644613015104,0.119925,42530.0,42523.0,0.505]
[1644613015306,0.119925,42530.0,42524.0,0.331188]
[1644613015307,0.058819,42530.0,42524.0,0.331188]
[1644613015501,0.108819,42530.0,42526.0,0.3011177]
[1644613015800,0.108819,42530.0,42527.0,0.331188]
[1644613016001,0.117628,42543.0,42534.0,0.2919671]
[1644613016002,0.3,42542.0,42534.0,0.2919671]
[1644613016203,0.058801,42538.0,42535.0,0.331188]
[1644613016400,0.058801,42538.0,42528.0,0.33133566]
[1644613016600,0.058801,42538.0,42528.0,0.331188]
[1644613016800,0.058801,42538.0,42534.0,0.50399677]
[1644613017000,0.058801,42538.0,42535.0,0.331188]
[1644613017745,0.12844787,42538.0,42535.0,0.331188]
[1644613018048,0.12844787,42538.0,42534.0,0.00045525]
[1644613018049,0.138432,42537.0,42534.0,0.00045525]
[1644613018342,0.37082647,42537.0,42535.0,0.331188]
[1644613018540,0.31200847,42537.0,42536.0,0.331188]
[1644613018740,0.31200847,42537.0,42530.0,0.00014766]
[1644613018940,0.108801,42538.0,42534.0,0.00045526]
[1644613018941,0.058801,42538.0,42534.0,0.00045526]
[1644613019341,0.05880701,42537.0,42535.0,0.54013776]
[1644613019543,0.058801,42541.0,42536.0,0.31943742]
[1644613019743,0.00045516,42543.0,42537.0,0.331188]
[1644613019941,0.05,42550.0,42538.0,0.32908727]
[1644613020143,0.31641991,42550.0,42546.0,0.31185904]
[1644613020344,0.31641991,42550.0,42539.0,0.69698006]
[1644613020345,0.4927874,42550.0,42547.0,0.331188]
[1644613020542,0.058786,42549.0,42536.0,0.00174477]
[1644613020745,0.43399991,42550.0,42536.0,0.31883692]
[1644613020746,0.40094965,42550.0,42536.0,0.31883692]
[1644613020942,0.40094965,42550.0,42536.0,0.00174477]
[1644613021141,0.40094965,42550.0,42536.0,0.26744694]
[1644613021394,0.40094965,42550.0,42535.0,0.70558259]
[1644613021395,0.31641991,42550.0,42535.0,0.70558259]
[1644613021693,0.00028784,42545.0,42535.0,0.6033167]
[1644613021995,0.05793749,42539.0,42535.0,0.7033167]
[1644613022193,0.05793749,42539.0,42535.0,0.49663283]
[1644613022394,0.05793749,42539.0,42535.0,0.39663283]
[1644613022593,0.05793749,42539.0,42536.0,0.331188]
[1644613022792,0.117601,42543.0,42536.0,0.331188]
[1644613022793,0.058796,42541.0,42536.0,0.431188]
[1644613022992,0.11805663,42543.0,42536.0,0.431188]
[1644613022993,0.00045563,42543.0,42537.0,0.331188]
[1644613023192,0.00045563,42543.0,42540.0,0.331188]
[1644613023397,0.00045563,42543.0,42540.0,0.1]
[1644613023695,0.117587,42548.0,42545.0,0.32529184]
[1644613023896,0.058785,42550.0,42546.0,0.331188]
[1644613024293,0.058785,42550.0,42546.0,0.1]
[1644613024493,0.27006677,42549.0,42539.0,0.24151183]
[1644613024695,0.27006677,42549.0,42540.0,0.331188]
[1644613024896,0.27006677,42549.0,42541.0,0.331188]
[1644613025355,0.05880172,42544.0,42539.0,0.00045575]
[1644613025561,0.05880172,42544.0,42540.0,0.331188]
[1644613025752,0.05880172,42544.0,42541.0,0.331188]
[1644613025957,0.05880172,42544.0,42537.0,0.23306831]
[1644613026152,0.058796,42541.0,42537.0,0.23306831]
[1644613026354,0.058796,42541.0,42539.0,0.00045571]
[1644613026555,0.00045566,42544.0,42540.0,0.331188]
[1644613026755,0.00045566,42544.0,42540.0,0.431188]
[1644613026953,0.34833484,42542.0,42541.0,0.331188]
[1644613027159,0.34833484,42542.0,42539.0,0.00045571]
[1644613027160,0.34833484,42542.0,42540.0,0.331188]
[1644613027356,0.41298446,42546.0,42540.0,0.331188]
[1644613027556,0.00042305,42544.0,42540.0,0.331188]
[1644613027756,0.00042305,42544.0,42539.0,0.00042311]
[1644613027957,0.061106,42543.0,42539.0,0.00042311]
[1644613028158,0.00042305,42544.0,42539.0,0.00042311]
[1644613028357,0.28681703,42543.0,42540.0,0.331188]
[1644613028798,0.28724009,42543.0,42540.0,0.331188]
[1644613029200,0.28724009,42543.0,42539.0,0.0004231]
[1644613029201,0.188432,42541.0,42539.0,0.0004231]
[1644613029401,0.188432,42540.0,42539.0,0.0004231]
[1644613029700,0.058817,42535.0,42528.0,0.00014766]
[1644613029906,0.07871457,42533.0,42529.0,0.331188]
[1644613030098,0.12871457,42533.0,42529.0,0.331188]
[1644613030302,0.061106,42532.0,42529.0,0.331188]
[1644613030500,0.30516059,42533.0,42530.0,0.331188]
[1644613030699,0.3445744,42532.0,42529.0,0.331188]
[1644613030900,0.40339767,42532.0,42529.0,0.331188]
[1644613031300,0.34065917,42526.0,42522.0,0.00014766]
[1644613031502,0.34065917,42526.0,42522.0,0.331188]
[1644613031700,0.34065917,42526.0,42521.0,0.51514766]
[1644613031701,0.05,42526.0,42521.0,0.51514766]
[1644613031902,0.34364851,42525.0,42521.0,0.51514766]
[1644613032102,0.34364851,42525.0,42522.0,0.331188]
[1644613032570,0.34364851,42525.0,42521.0,0.01014766]
[1644613032571,0.138432,42523.0,42521.0,0.01014766]
[1644613032761,0.08589374,42515.0,42505.0,0.3727]
[1644613032966,0.08589374,42515.0,42509.0,0.00014767]
[1644613032967,0.117692,42513.0,42509.0,0.00014767]
[1644613033159,0.117692,42513.0,42502.0,0.00014767]
[1644613033358,0.117692,42513.0,42504.0,0.331188]
[1644613033359,0.058841,42513.0,42504.0,0.331188]
[1644613033563,0.058841,42513.0,42507.0,0.21139061]
[1644613033765,0.11768332,42513.0,42507.0,0.21139061]
[1644613033961,0.11768332,42513.0,42508.0,0.331188]
[1644613034163,0.47653697,42520.0,42513.0,0.23536663]
[1644613034164,0.3,42520.0,42513.0,0.23536663]
[1644613034362,0.361106,42521.0,42513.0,0.23536663]
[1644613034561,0.06957263,42519.0,42513.0,0.23536663]
[1644613034762,0.06957263,42519.0,42513.0,0.23167239]
[1644613034763,0.058847,42514.0,42513.0,0.23167239]
[1644613034965,0.56259166,42514.0,42513.0,0.23167239]
[1644613035364,0.66259166,42514.0,42513.0,0.23167239]
[1644613035667,0.60148566,42514.0,42513.0,0.23167239]
[1644613035866,0.66033295,42514.0,42513.0,0.23167239]
[1644613036065,0.72143895,42514.0,42513.0,0.23167239]
[1644613036292,0.66033295,42514.0,42513.0,0.23167239]
[1644613037594,0.66033295,42514.0,42502.0,0.00014767]
[1644613037595,0.14036815,42503.0,42502.0,0.00014767]
[1644613037793,0.14036815,42503.0,42501.0,0.01014767]
[1644613037794,0.07926215,42503.0,42501.0,0.01014767]
[1644613037992,0.11771962,42504.0,42501.0,0.01]
[1644613038195,0.31422408,42503.0,42501.0,0.01]
[1644613038394,0.61520476,42503.0,42501.0,0.01]
[1644613038594,0.061106,42502.0,42501.0,0.01]
[1644613039093,0.31422408,42503.0,42501.0,0.01]
[1644613039294,0.061106,42502.0,42501.0,0.01]
[1644613039495,0.31422408,42503.0,42501.0,0.01]
[1644613039696,0.061106,42502.0,42501.0,0.01]
[1644613039895,0.31422408,42503.0,42501.0,0.01]
[1644613040349,0.11771962,42504.0,42501.0,0.01]
[1644613041547,0.33692207,42503.0,42501.0,0.01]
[1644613042148,0.40335426,42503.0,42501.0,0.01]
[1644613042445,0.50335426,42503.0,42501.0,0.01]
[1644613042649,0.43692207,42503.0,42501.0,0.01]
[1644613043445,0.1,42503.0,42502.0,0.331188]
[1644613043646,0.24093593,42503.0,42501.0,0.01]
[1644613043896,0.17982993,42503.0,42501.0,0.01]
[1644613044596,0.34296191,42502.0,42501.0,0.01]
[1644613045195,0.1,42503.0,42501.0,0.01]
[1644613046196,0.31354605,42502.0,42501.0,0.01]
[1644613047739,0.138432,42499.0,42498.0,0.00014767]
[1644613047941,0.138432,42499.0,42497.0,0.0007216]
[1644613047942,0.749538,42499.0,42497.0,0.0007216]
[1644613048140,0.061106,42498.0,42497.0,0.0007216]
[1644613048340,0.361106,42498.0,42497.0,0.0007216]
[1644613048539,0.43921198,42498.0,42497.0,0.0007216]
[1644613048741,0.77921521,42498.0,42497.0,0.0007216]
[1644613048940,0.64078321,42498.0,42497.0,0.0007216]
[1644613049243,0.93944709,42498.0,42497.0,0.0007216]
[1644613049439,0.64078321,42498.0,42497.0,0.0007216]
[1644613049638,1.18944709,42498.0,42497.0,0.0007216]
[1644613049841,1.02921521,42498.0,42497.0,0.0007216]
[1644613050041,1.52510363,42498.0,42497.0,0.0007216]
[1644613050341,1.58398863,42498.0,42497.0,0.0007216]
[1644613051796,1.62748863,42498.0,42497.0,0.0007216]
[1644613051995,1.16146676,42498.0,42497.0,0.0007216]
[1644613052193,0.71649152,42498.0,42497.0,0.0007216]
[1644613052593,0.55625964,42498.0,42497.0,0.0007216]
[1644613053195,0.86298334,42498.0,42497.0,0.0007216]
[1644613053394,0.65625964,42498.0,42497.0,0.0007216]
[1644613053595,0.48083498,42498.0,42497.0,0.0007216]
[1644613053796,0.3206031,42498.0,42497.0,0.0007216]
[1644613054197,0.2206031,42498.0,42497.0,0.0007216]
[1644613054398,0.3206031,42498.0,42497.0,0.0007216]
[1644613055264,0.2206031,42498.0,42497.0,0.0007216]
[1644613055463,0.3206031,42498.0,42497.0,0.0007216]
[1644613055865,1.05,42497.0,42495.0,0.00056141]
[1644613056164,0.294434,42495.0,42490.0,0.00014767]
[1644613056363,0.22665856,42492.0,42489.0,0.00152479]
[1644613056566,0.12763091,42491.0,42489.0,0.00152479]
[1644613056969,0.29450943,42490.0,42489.0,0.00152479]
[1644613057165,0.33800943,42490.0,42489.0,0.00152479]
[1644613057366,0.75013184,42490.0,42482.0,0.00014767]
[1644613057566,0.6735656,42490.0,42488.0,0.00038116]
[1644613057767,0.88379748,42490.0,42488.0,0.00038116]
[1644613057965,0.37905617,42490.0,42488.0,0.00038116]
[1644613058169,0.43928805,42490.0,42488.0,0.00038116]
[1644613058366,0.33794017,42490.0,42488.0,0.00038116]
[1644613058568,0.058883,42486.0,42483.0,0.00014767]
[1644613058795,0.17665919,42486.0,42482.0,0.00014767]
[1644613059293,0.058887,42485.0,42481.0,0.01153814]
[1644613059696,0.30894407,42483.0,42481.0,0.01]
[1644613059895,0.108887,42485.0,42483.0,0.35888154]
[1644613060102,0.058887,42485.0,42483.0,0.35888154]
[1644613060296,0.11777619,42486.0,42483.0,0.35888154]
[1644613060896,0.11777,42484.0,42483.0,0.35888154]
[1644613062104,0.16777,42484.0,42483.0,0.35888154]
[1644613063344,0.26777,42484.0,42483.0,0.35888154]
[1644613065249,0.33626845,42484.0,42483.0,0.35888154]
[1644613065948,0.26777,42484.0,42483.0,0.35888154]
[1644613066998,0.26777,42484.0,42483.0,0.69078054]
[1644613066999,0.21777,42484.0,42483.0,0.69078054]
[1644613067206,0.21777,42484.0,42483.0,0.68678054]
[1644613067207,0.1,42484.0,42483.0,0.68678054]
[1644613067399,0.1,42484.0,42483.0,0.88563294]
[1644613067597,0.1,42484.0,42483.0,0.60373394]
[1644613067796,0.1,42484.0,42483.0,0.8857209]
[1644613067997,0.1,42484.0,42483.0,1.3176199]
[1644613068598,0.1,42484.0,42483.0,0.88563294]
[1644613068798,0.1,42484.0,42483.0,0.65373394]
[1644613068997,0.1,42484.0,42483.0,0.98563294]
[1644613069200,0.1,42484.0,42483.0,0.88563294]
[1644613069400,0.1,42484.0,42483.0,0.96563294]
[1644613069401,0.15,42484.0,42483.0,0.96563294]
[1644613069604,0.15,42484.0,42483.0,1.2845979]
[1644613069801,0.15,42484.0,42483.0,0.96563294]
[1644613070060,0.145,42484.0,42483.0,0.96563294]
[1644613070255,0.145,42484.0,42483.0,1.01563294]
[1644613070554,0.145,42484.0,42483.0,0.96563294]
[1644613070953,0.14,42484.0,42483.0,0.96563294]
[1644613071855,0.14,42484.0,42483.0,0.33488154]
[1644613072256,0.42850857,42484.0,42483.0,0.33488154]
[1644613072653,0.77048061,42484.0,42483.0,0.33477584]
[1644613073054,0.42850857,42484.0,42483.0,0.33477584]
[1644613073655,0.14,42484.0,42483.0,0.33477584]
[1644613074698,0.42143059,42484.0,42483.0,0.33477584]
[1644613075102,0.76196866,42484.0,42483.0,0.33477584]
[1644613075297,0.42143059,42484.0,42483.0,0.33477584]
[1644613075499,0.14,42484.0,42483.0,0.33477584]
[1644613076301,0.14,42484.0,42481.0,0.01056854]
[1644613076502,0.17667277,42483.0,42481.0,0.01]
[1644613076799,0.07016882,42482.0,42481.0,0.01042102]
[1644613077000,0.34302679,42482.0,42481.0,0.01042102]
[1644613077201,0.39302679,42482.0,42481.0,0.01042102]
[1644613077654,0.39302679,42482.0,42481.0,0.01]
[1644613078750,0.12016882,42482.0,42481.0,0.01]
[1644613080856,0.12016882,42482.0,42481.0,0.36]